bitfinex-derivatives/quotes_SOLF0:USTF0_20241215
["timestamp","ask_amount","ask_price","bid_price","bid_amount"]
[1734246405024,2.2898,218.39,218.32,8.64611775]
[1734246405230,2.0,218.38,218.32,6.35561775]
[1734246405423,6.35561775,218.41,218.32,6.35561775]
[1734246405424,2.0,218.37,218.32,6.35561775]
[1734246405621,2.0,218.36,218.32,6.35561775]
[1734246407021,2.04,218.36,218.32,6.35561775]
[1734246407221,5.3769916,218.46,218.34,6.35561775]
[1734246407528,6.35561775,218.42,218.34,6.35561775]
[1734246407723,2.2899,218.39,218.3,1.4611]
[1734246408028,2.04,218.38,218.32,6.35561775]
[1734246408723,2.04,218.38,218.32,8.64621775]
[1734246409026,2.04,218.38,218.32,6.35561775]
[1734246409219,2.04,218.38,218.34,8.64591775]
[1734246413128,6.35561775,218.4,218.34,8.64591775]
[1734246413322,2.04,218.39,218.34,8.64591775]
[1734246414922,2.04,218.39,218.34,2.2903]
[1734246416728,4.3299,218.39,218.34,2.2903]
[1734246419032,2.04,218.39,218.34,2.2903]
[1734246420535,2.04,218.39,218.32,6.35561775]
[1734246420732,2.04,218.39,218.36,2.2901]
[1734246421531,1.4927,218.48,218.34,6.35561775]
[1734246421837,2.04,218.47,218.38,6.35561775]
[1734246422036,8.39561775,218.46,218.38,6.35561775]
[1734246422341,2.04,218.45,218.38,6.35561775]
[1734246422726,8.64481775,218.46,218.41,2.2896]
[1734246422926,2.04,218.45,218.41,2.2896]
[1734246423634,2.8943,218.56,218.4,6.35561775]
[1734246423939,2.04,218.5,218.42,6.35561775]
[1734246424142,2.04,218.49,218.42,6.35561775]
[1734246425638,2.04,218.49,218.43,2.2893]
[1734246426035,2.04,218.49,218.42,6.35561775]
[1734246426237,6.35561775,218.46,218.39,4.5454]
[1734246426741,2.2892,218.45,218.39,6.8352]
[1734246426942,4.3292,218.45,218.39,6.8352]
[1734246427439,4.3292,218.45,218.41,5.54497648]
[1734246429539,4.3292,218.45,218.39,6.8352]
[1734246429740,2.2893,218.44,218.39,4.5454]
[1734246430045,6.35561775,218.42,218.34,6.35561775]
[1734246430243,2.2897,218.4,218.34,6.35561775]
[1734246430643,6.35561775,218.42,218.36,5.41136823]
[1734246431046,8.64521775,218.42,218.36,5.41136823]
[1734246431249,2.04,218.45,218.36,11.76698598]
[1734246431444,2.04,218.45,218.38,6.35561775]
[1734246431445,8.39561775,218.45,218.38,6.35561775]
[1734246432745,8.39561775,218.45,218.38,8.64561775]
[1734246432746,2.2894,218.44,218.38,8.64561775]
[1734246433738,8.64501775,218.44,218.38,8.64561775]
[1734246436250,8.64501775,218.44,218.36,11.76698598]
[1734246436550,8.64501775,218.44,218.37,2.29]
[1734246436751,8.64501775,218.44,218.36,11.76698598]
[1734246436752,2.2894,218.43,218.36,11.76698598]
[1734246436953,6.35561775,218.44,218.36,14.05718598]
[1734246438850,2.2896,218.42,218.36,14.05718598]
[1734246439250,2.2896,218.42,218.36,7.70156823]
[1734246439647,2.2897,218.41,218.36,5.41136823]
[1734246440954,4.3097,218.41,218.36,5.41136823]
[1734246444159,2.02,218.41,218.37,2.29]
[1734246448862,2.02,218.41,218.37,6.35561775]
[1734246449058,2.02,218.41,218.38,2.2899]
[1734246457964,2.2898,218.4,218.34,2.2903]
[1734246458165,2.02,218.41,218.34,2.2903]
[1734246458362,6.35561775,218.4,218.34,2.2903]
[1734246459671,2.2899,218.39,218.34,2.2903]
[1734246460578,2.2899,218.39,218.35,5.43459901]
[1734246461080,8.64541775,218.4,218.35,7.72489901]
[1734246462177,2.2898,218.4,218.35,7.72489901]
[1734246464568,4.3098,218.4,218.35,7.72489901]
[1734246465980,2.02,218.4,218.36,2.2901]
[1734246466679,2.02,218.4,218.37,2.2901]
[1734246468781,2.02,218.4,218.35,5.43459901]
[1734246468782,2.02,218.4,218.36,2.2901]
[1734246468983,2.02,218.4,218.35,5.43459901]
[1734246470080,2.02,218.4,218.36,2.2902]
[1734246470484,2.02,218.4,218.35,5.43459901]
[1734246470684,2.02,218.4,218.28,9.4206322]
[1734246470685,2.2901,218.38,218.32,2.2905]
[1734246471079,2.2901,218.38,218.31,6.35561775]
[1734246471280,2.0,218.4,218.33,2.2904]
[1734246471476,2.2899,218.39,218.33,6.35561775]
[1734246471981,2.2899,218.39,218.33,11.89602879]
[1734246472383,2.2899,218.39,218.35,2.2903]
[1734246474088,8.35561775,218.4,218.35,2.2903]
[1734246474680,2.0,218.41,218.35,6.35561775]
[1734246475678,13.73,218.58,218.33,5.54041104]
[1734246475679,2.0,218.44,218.37,6.35561775]
[1734246475986,4.2893,218.44,218.39,2.2898]
[1734246476986,10.64491775,218.44,218.39,2.2898]
[1734246478487,2.2895,218.43,218.38,2.29]
[1734246479188,2.2895,218.42,218.38,2.29]
[1734246480091,2.2897,218.41,218.36,2.2901]
[1734246480989,5.42269927,218.51,218.38,2.2899]
[1734246481292,6.35561775,218.44,218.38,2.2899]
[1734246481493,2.0,218.43,218.38,2.2899]
[1734246481884,2.0,218.43,218.36,6.35561775]
[1734246481885,2.0,218.43,218.39,2.2898]
[1734246487487,2.2895,218.43,218.39,2.2898]
[1734246488994,2.2895,218.43,218.37,2.29]
[1734246489200,2.2895,218.43,218.36,6.35561775]
[1734246489701,8.35561775,218.44,218.36,6.35561775]
[1734246490001,8.35561775,218.44,218.37,2.2901]
[1734246491599,2.2896,218.42,218.37,2.2901]
[1734246491900,2.0,218.44,218.38,2.29]
[1734246492598,2.2895,218.43,218.39,2.2898]
[1734246492794,2.2895,218.43,218.37,6.35561775]
[1734246494095,2.0,218.44,218.37,6.35561775]
[1734246494303,2.2897,218.41,218.37,6.35561775]
[1734246495003,2.2896,218.42,218.37,8.64571775]
[1734246496804,2.2896,218.42,218.37,2.2901]
[1734246499206,2.0,218.44,218.36,6.35561775]
[1734246499511,4.2894,218.44,218.39,2.2899]
[1734246509509,2.2894,218.43,218.39,2.2899]
[1734246512922,2.0,218.44,218.39,2.2899]
[1734246512923,4.2893,218.44,218.39,2.2899]
[1734246521930,2.2896,218.42,218.36,2.2901]
[1734246522122,2.2896,218.42,218.35,9.34771775]
[1734246523619,2.2896,218.42,218.37,2.29]
[1734246524228,8.35561775,218.44,218.36,2.2901]
[1734246524426,6.35561775,218.42,218.36,2.2901]
[1734246525727,2.2897,218.4,218.36,2.2901]
[1734246526027,2.0,218.39,218.36,2.2901]
[1734246532437,2.0,218.39,218.35,3.7924]
[1734246533537,2.29,218.38,218.33,7.83081104]
[1734246533837,8.35561775,218.39,218.29,2.9738]
[1734246534143,8.35561775,218.39,218.31,8.64621775]
[1734246534744,8.35561775,218.39,218.32,5.52941489]
[1734246535141,2.2901,218.37,218.32,5.52941489]
[1734246536839,2.2902,218.36,218.31,8.64621775]
[1734246537143,2.2902,218.36,218.31,2.2906]
[1734246537545,2.0,218.35,218.31,2.2906]
[1734246537734,2.0,218.35,218.3,7.84231775]
[1734246537735,4.2903,218.35,218.3,7.84231775]
[1734246538544,2.2904,218.34,218.29,8.54382873]
[1734246538743,2.2904,218.34,218.29,7.09902873]
[1734246539042,2.2904,218.34,218.29,9.38992873]
[1734246539340,2.2904,218.34,218.24,3.0731]
[1734246539341,6.35561775,218.34,218.24,3.0731]
[1734246539641,6.35561775,218.32,218.25,6.35561775]
[1734246539843,2.2909,218.29,218.24,3.0731]
[1734246540043,6.35561775,218.26,218.21,5.55792954]
[1734246540349,2.0,218.25,218.19,8.64741775]
[1734246540539,2.2912,218.27,218.21,6.35561775]
[1734246540838,2.0,218.26,218.23,6.35561775]
[1734246543046,6.35561775,218.3,218.23,6.35561775]
[1734246543347,2.0,218.29,218.25,6.35561775]
[1734246544246,2.0,218.29,218.25,8.64691775]
[1734246545143,2.0,218.29,218.25,2.2913]
[1734246545748,2.2908,218.3,218.25,2.2913]
[1734246545952,6.35561775,218.34,218.28,6.35561775]
[1734246546147,8.35561775,218.34,218.28,6.35561775]
[1734246546353,6.35561775,218.34,218.28,6.35561775]
[1734246547055,2.0,218.35,218.28,6.35561775]
[1734246547249,6.35561775,218.34,218.25,2.0]
[1734246547444,6.35561775,218.34,218.28,6.35561775]
[1734246547652,2.0,218.35,218.28,6.35561775]
[1734246548653,2.0,218.35,218.3,2.2908]
[1734246549854,4.2903,218.35,218.3,2.2908]
[1734246551049,2.0,218.35,218.31,2.2907]
[1734246551255,2.0,218.35,218.3,6.35561775]
[1734246551756,8.35561775,218.38,218.3,6.35561775]
[1734246552548,10.64561775,218.38,218.3,6.35561775]
[1734246552756,4.29,218.38,218.3,6.35561775]
[1734246553057,10.64561775,218.38,218.3,6.35561775]
[1734246553257,10.64561775,218.38,218.32,2.2906]
[1734246554460,8.35561775,218.38,218.3,2.2907]
[1734246554653,8.35561775,218.38,218.29,6.35561775]
[1734246555662,10.64561775,218.38,218.32,2.2905]
[1734246556454,8.35561775,218.38,218.32,2.2905]
[1734246556660,2.29,218.37,218.32,2.2905]
[1734246558659,8.35561775,218.38,218.3,6.35561775]
[1734246558860,6.35561775,218.32,218.24,7.79351775]
[1734246560467,2.2908,218.3,218.24,10.08491775]
[1734246560659,8.64641775,218.3,218.24,8.64701775]
[1734246561762,2.0,218.29,218.24,8.64701775]
[1734246562070,2.0,218.29,218.23,1.4486]
[1734246562266,4.291,218.29,218.23,3.7401]
[1734246562464,2.0,218.29,218.23,3.7401]
[1734246563765,2.291,218.28,218.23,3.7401]
[1734246564364,2.2912,218.26,218.21,31.01817455]
[1734246564563,6.35561775,218.26,218.2,5.60889636]
[1734246564765,6.35561775,218.26,218.15,2.0]
[1734246564766,2.0,218.25,218.18,6.35561775]
[1734246564961,2.0,218.25,218.15,2.0]
[1734246565167,2.0,218.25,218.19,6.35561775]
[1734246565669,2.2915,218.23,218.19,6.35561775]
[1734246566164,2.2915,218.23,218.18,2.292]
[1734246566368,2.0,218.25,218.19,6.35561775]
[1734246566559,4.2914,218.25,218.19,6.35561775]
[1734246566764,4.2914,218.25,218.21,6.35561775]
[1734246567360,4.2914,218.25,218.19,7.7544924]
[1734246567570,2.0,218.25,218.21,6.35561775]
[1734246567869,2.2914,218.24,218.21,6.35561775]
[1734246568966,2.2914,218.24,218.19,7.7544924]
[1734246569170,2.2914,218.24,218.2,6.35561775]
[1734246570370,4.2913,218.25,218.2,6.35561775]
[1734246570869,4.2911,218.27,218.22,6.35561775]
[1734246571068,4.2911,218.27,218.21,2.2917]
[1734246571271,4.2911,218.27,218.22,6.35561775]
[1734246572574,2.2913,218.25,218.19,5.4625924]
[1734246572876,8.35561775,218.27,218.2,6.35561775]
[1734246573075,10.64681775,218.27,218.22,2.2916]
[1734246574575,2.2912,218.26,218.22,2.2916]
[1734246574867,2.0,218.3,218.25,2.2913]
[1734246575081,2.2908,218.3,218.26,6.35561775]
[1734246575279,2.2908,218.3,218.26,8.64681775]
[1734246576675,2.2908,218.3,218.26,2.2912]
[1734246576871,8.35561775,218.31,218.19,7.4625924]
[1734246576872,2.2912,218.27,218.19,7.4625924]
[1734246577077,4.2912,218.27,218.22,6.35561775]
[1734246577472,4.2912,218.27,218.19,5.4625924]
[1734246577669,4.2912,218.27,218.22,6.35561775]
[1734246578693,4.2912,218.27,218.22,8.64711775]
[1734246579378,2.2915,218.24,218.2,8.64741775]
[1734246581577,2.2915,218.24,218.2,6.35561775]
[1734246581980,2.2915,218.24,218.19,7.7544924]
[1734246582273,2.2917,218.22,218.19,5.4625924]
[1734246582474,6.35561775,218.21,218.12,0.3517]
[1734246582681,6.35561775,218.18,218.12,0.3517]
[1734246582879,2.0,218.17,218.12,0.3517]
[1734246583274,2.0,218.17,217.99,25.40132815]
[1734246583476,6.35561775,218.11,218.03,8.64921775]
[1734246583675,52.42,218.29,218.07,5.4687549]
[1734246583878,8.64811775,218.14,218.07,14.11747265]
[1734246584070,2.0,218.13,218.07,11.82437265]
[1734246584379,8.64831775,218.12,218.07,5.4687549]
[1734246586780,66.17,218.29,218.07,5.4687549]
[1734246587081,8.64811775,218.14,218.07,11.82437265]
[1734246587374,2.0,218.13,218.07,11.82437265]
[1734246587579,2.0,218.13,218.07,14.11757265]
[1734246587879,2.0,218.13,218.05,6.35561775]
[1734246588578,8.64831775,218.12,218.05,8.64901775]
[1734246589370,2.2928,218.11,218.05,8.64901775]
[1734246589571,2.0,218.13,218.0,1.4788]
[1734246589772,2.0,218.13,218.03,6.35561775]
[1734246589773,6.35561775,218.11,218.03,6.35561775]
[1734246589977,2.2931,218.08,218.0,1.4788]
[1734246590173,2.0,218.07,218.03,5.3685522]
[1734246590580,8.35561775,218.07,218.0,1.4788]
[1734246591282,2.2935,218.04,217.99,7.76961775]
[1734246591479,2.0,218.03,217.99,7.76961775]
[1734246591776,8.35561775,218.03,217.94,2.9946]
[1734246591977,4.2937,218.03,217.95,6.35561775]
[1734246592178,8.35561775,218.03,217.94,2.9946]
[1734246592477,8.35561775,218.03,217.96,6.35561775]
[1734246592980,2.0,218.02,217.98,6.35561775]
[1734246593173,2.0,218.01,217.98,6.35561775]
[1734246593378,2.0,218.02,217.98,6.35561775]
[1734246594083,2.0,218.02,217.99,2.294]
[1734246594280,56.56281835,218.17,218.0,6.35561775]
[1734246594475,6.35561775,218.07,218.0,6.35561775]
[1734246594679,2.0,218.06,218.0,6.35561775]
[1734246594983,2.0,218.05,218.0,6.35561775]
[1734246595282,2.2933,218.06,218.0,6.35561775]
[1734246595485,2.0,218.05,218.0,6.35561775]
[1734246595984,2.0,218.04,218.0,8.64951775]
[1734246596373,2.0,218.04,217.96,5.37081374]
[1734246596585,2.0,218.04,217.99,8.64961775]
[1734246597083,8.64901775,218.05,217.97,8.64981775]
[1734246597274,2.0,218.04,217.97,8.64981775]
[1734246597684,4.2935,218.04,217.98,2.2941]
[1734246597879,4.2935,218.04,217.97,6.35561775]
[1734246598386,6.35561775,218.01,217.8,6.3466322]
[1734246598585,2.0,218.0,217.93,6.35561775]
[1734246598883,2.0,218.0,217.93,11.88319623]
[1734246599585,4.294,218.0,217.94,2.2946]
[1734246599984,6.35561775,217.99,217.93,5.52757848]
[1734246600184,6.35561775,217.99,217.76,25.40132815]
[1734246600383,2.2942,217.98,217.91,6.35561775]
[1734246600583,2.2942,217.98,217.79,4.4625]
[1734246600584,6.35561775,217.99,217.84,2.0]
[1734246600883,2.0,217.98,217.92,6.35561775]
[1734246601085,2.0,217.97,217.92,6.35561775]
[1734246601583,2.9958,218.1,217.94,6.35561775]
[1734246601584,2.0,217.96,217.94,6.35561775]
[1734246601783,6.35561775,218.01,217.94,6.35561775]
[1734246601981,2.0,218.0,217.98,6.35561775]
[1734246602187,2.0,218.0,217.99,2.294]
[1734246602691,2.0,218.02,217.98,8.64971775]
[1734246602990,8.35561775,218.03,217.89,4.498]
[1734246603284,2.2941,217.99,217.89,4.498]
[1734246603488,2.0,217.98,217.89,4.498]
[1734246603688,2.0,217.98,217.95,6.35561775]
[1734246603890,8.39190611,218.1,217.97,6.35561775]
[1734246604092,6.35561775,218.04,217.97,6.35561775]
[1734246604292,2.0,218.03,217.97,6.35561775]
[1734246605683,2.0,218.03,217.98,2.2941]
[1734246606089,6.35561775,218.02,217.89,4.498]
[1734246606391,6.35561775,218.0,217.95,2.2944]
[1734246606692,2.0,217.99,217.95,2.2944]
[1734246608385,2.0,217.98,217.95,2.2944]
[1734246608993,2.0,217.98,217.93,6.35561775]
[1734246609988,4.2941,217.98,217.92,2.2947]
[1734246610196,10.64971775,217.98,217.92,8.65031775]
[1734246610494,8.35561775,217.98,217.89,6.35561775]
[1734246611592,2.2944,217.96,217.91,2.2949]
[1734246611989,2.0,217.98,217.91,8.65051775]
[1734246612191,2.0,217.98,217.93,6.35561775]
[1734246613493,2.0,217.98,217.95,2.2944]
[1734246613691,2.0,217.98,217.92,6.35561775]
[1734246613887,2.0,217.98,217.88,5.56464837]
[1734246614192,2.0,217.98,217.91,6.35561775]
[1734246614584,4.2942,217.98,217.92,2.2947]
[1734246615689,4.2942,217.98,217.93,2.2947]
[1734246615885,2.0,217.97,217.93,8.65031775]
[1734246616086,6.35561775,218.02,217.95,2.2944]
[1734246616289,2.0,218.01,217.95,6.35561775]
[1734246616484,2.0,218.0,217.95,6.35561775]
[1734246616686,2.04,218.0,217.97,2.2942]
[1734246618091,2.2935,218.04,217.99,2.294]
[1734246618293,2.04,218.03,217.99,2.294]
[1734246619091,2.9958,218.1,217.99,6.35561775]
[1734246619294,2.2931,218.08,218.03,2.2936]
[1734246619896,2.293,218.09,218.04,2.2935]
[1734246620095,5.51190695,218.13,217.93,4.4903]
[1734246620096,6.35561775,218.06,217.93,6.5303]
[1734246620294,6.35561775,218.06,217.98,6.35561775]
[1734246620494,6.35561775,218.06,218.0,6.35561775]
[1734246620798,2.04,218.05,218.0,6.35561775]
[1734246621702,5.51190695,218.13,218.0,6.35561775]
[1734246621903,2.04,218.1,218.02,6.35561775]
[1734246622096,8.39561775,218.1,218.02,6.35561775]
[1734246622300,6.35561775,218.1,218.02,6.35561775]
[1734246622501,2.04,218.09,218.02,6.35561775]
[1734246622803,6.35561775,218.1,218.02,6.35561775]
[1734246623101,2.04,218.09,218.04,8.64911775]
[1734246623397,2.9769,218.16,218.04,6.35561775]
[1734246623598,2.04,218.15,218.04,6.35561775]
[1734246623794,6.35561775,218.13,218.04,6.35561775]
[1734246624599,6.35561775,218.13,218.06,2.2933]
[1734246624600,2.2927,218.12,218.06,2.2933]
[1734246624803,2.04,218.11,218.06,2.2933]
[1734246626202,2.04,218.11,218.04,6.35561775]
[1734246626203,2.04,218.11,218.07,2.2932]
[1734246626501,2.2926,218.13,218.08,6.35561775]
[1734246626502,2.04,218.13,218.08,6.35561775]
[1734246627601,2.04,218.13,218.09,2.293]
[1734246627802,2.04,218.14,218.09,2.293]
[1734246628213,2.04,218.14,218.08,6.35561775]
[1734246628500,2.2925,218.14,218.08,8.64871775]
[1734246628706,56.56281835,218.17,218.04,2.04]
[1734246629006,6.35561775,218.14,218.06,6.35561775]
[1734246629206,2.2926,218.13,218.06,8.64881775]
[1734246630106,2.04,218.12,218.06,2.2932]
[1734246630308,2.04,218.12,218.06,8.64881775]
[1734246631607,2.04,218.12,218.06,6.35561775]
[1734246632503,8.39561775,218.12,218.06,6.35561775]
[1734246632698,10.68831775,218.12,218.06,8.64891775]
[1734246633900,8.39561775,218.12,218.01,6.5327]
[1734246634105,8.39561775,218.12,218.05,6.35561775]
[1734246634106,2.2929,218.1,218.05,6.35561775]
[1734246634609,2.04,218.12,218.05,6.35561775]
[1734246634804,4.3328,218.12,218.05,8.64901775]
[1734246635200,4.3328,218.12,218.05,6.35561775]
[1734246635807,2.2928,218.11,218.06,2.2933]
[1734246636010,2.2928,218.11,218.05,6.35561775]
[1734246636409,2.2928,218.11,218.05,2.2933]
[1734246636711,2.2928,218.11,218.06,6.35561775]
[1734246637612,2.04,218.12,218.01,6.5327]
[1734246637913,2.04,218.12,217.99,5.62841854]
[1734246637914,2.2929,218.1,217.99,5.62841854]
[1734246638211,6.35561775,218.09,218.0,6.35561775]
[1734246638408,2.04,218.08,218.0,6.35561775]
[1734246639509,2.04,218.08,217.99,5.62841854]
[1734246639510,2.04,218.08,218.02,6.35561775]
[1734246639708,2.2932,218.07,218.02,6.35561775]
[1734246642016,2.8253,218.16,218.04,6.35561775]
[1734246642316,6.35561775,218.13,218.06,6.35561775]
[1734246642709,2.2928,218.12,218.06,2.2933]
[1734246643608,2.2928,218.12,218.0,2.04]
[1734246643609,2.2925,218.15,218.09,2.293]
[1734246643811,2.04,218.14,218.09,8.64861775]
[1734246644613,2.04,218.13,218.09,8.64861775]
[1734246645017,2.04,218.13,218.09,2.293]
[1734246646718,4.3326,218.13,218.09,2.293]
[1734246649619,2.04,218.13,218.07,2.2931]
[1734246650011,6.35561775,218.1,218.02,2.9238]
[1734246650212,2.04,218.09,218.02,9.27941775]
[1734246650713,2.2931,218.08,218.03,2.2936]
[1734246650913,2.04,218.09,218.03,2.2936]
[1734246651713,2.2932,218.07,218.03,2.2936]
[1734246652617,2.04,218.09,218.02,9.27941775]
[1734246652820,6.35561775,218.08,218.02,2.9238]
[1734246653016,2.04,218.09,217.94,1.4262]
[1734246653017,6.35561775,218.06,217.94,1.4262]
[1734246653223,6.35561775,218.04,217.94,1.4262]
[1734246653417,2.04,218.03,217.96,6.35561775]
[1734246654019,2.2938,218.01,217.96,8.65001775]
[1734246654825,2.04,218.03,217.94,1.4262]
[1734246655017,2.04,218.03,217.95,6.35561775]
[1734246655018,2.294,218.0,217.95,6.35561775]
[1734246656921,2.04,217.99,217.95,6.35561775]
[1734246657223,4.3341,217.99,217.95,6.35561775]
[1734246659022,4.3341,217.99,217.94,6.99554989]
[1734246659222,4.3341,217.99,217.95,6.35561775]
[1734246659920,2.04,217.99,217.91,3.0565]
[1734246660117,2.04,217.99,217.93,6.35561775]
[1734246660524,2.2944,217.96,217.93,6.35561775]
[1734246660725,2.04,217.95,217.93,6.35561775]
[1734246663318,2.04,217.95,217.91,3.8114]
[1734246663319,2.04,217.95,217.9,0.2629]
[1734246663925,6.35561775,217.94,217.9,0.2629]
[1734246664323,2.2949,217.91,217.9,0.2629]
[1734246664522,4.3349,217.91,217.9,0.2629]
[1734246665431,2.04,217.91,217.81,6.35561775]
[1734246665623,6.35561775,217.88,217.81,6.35561775]
[1734246665827,2.04,217.87,217.81,6.35561775]
[1734246666230,2.2955,217.86,217.76,4.4862]
[1734246666427,2.2955,217.86,217.81,6.35561775]
[1734246666828,6.35561775,217.9,217.83,6.35561775]
[1734246667129,2.04,217.89,217.84,6.35561775]
[1734246668029,2.04,217.89,217.83,6.35561775]
[1734246669531,6.35561775,217.85,217.62,25.40132815]
[1734246669828,6.35561775,217.81,217.72,6.35561775]
[1734246670029,6.35561775,217.79,217.68,1.4278]
[1734246670227,2.04,217.78,217.68,1.4278]
[1734246670425,69.2805,217.88,217.63,5.39241059]
[1734246670626,2.04,217.87,217.71,6.35561775]
[1734246670826,6.35561775,217.79,217.71,6.35561775]
[1734246671327,6.35561775,217.79,217.65,1.4278]
[1734246671328,2.04,217.78,217.65,1.4278]
[1734246671532,2.04,217.78,217.71,6.35561775]
[1734246671829,2.04,217.77,217.73,6.35561775]
[1734246672034,2.04,217.76,217.73,6.35561775]
[1734246672832,2.04,217.78,217.75,6.35561775]
[1734246673134,2.04,217.79,217.68,1.4072]
[1734246673532,2.04,217.79,217.73,6.35561775]
[1734246674144,4.3362,217.79,217.7,2.297]
[1734246674343,4.3362,217.79,217.68,1.4072]
[1734246674344,2.04,217.79,217.71,6.35561775]
[1734246674637,8.39561775,217.79,217.71,6.35561775]
[1734246675036,8.39561775,217.79,217.73,6.35561775]
[1734246675337,8.39561775,217.79,217.68,1.4072]
[1734246675530,8.39561775,217.79,217.72,6.35561775]
[1734246675730,2.04,217.78,217.74,6.35561775]
[1734246676038,2.04,217.77,217.74,6.35561775]
[1734246676242,2.04,217.78,217.72,6.35561775]
[1734246676843,2.2964,217.77,217.72,6.35561775]
[1734246677333,2.2964,217.77,217.68,3.4472]
[1734246677530,2.2964,217.77,217.71,6.35561775]
[1734246678542,2.04,217.78,217.71,6.35561775]
[1734246678936,2.04,217.78,217.71,8.65261775]
[1734246679841,2.04,217.78,217.68,1.4072]
[1734246679842,2.2966,217.75,217.68,3.7045]
[1734246680041,2.12,217.74,217.69,6.35561775]
[1734246680433,2.12,217.74,217.71,6.35561775]
[1734246681240,5.54758406,217.86,217.73,6.35561775]
[1734246681444,6.35561775,217.82,217.75,6.35561775]
[1734246682047,2.2961,217.8,217.75,6.35561775]
[1734246682240,2.12,217.79,217.75,6.35561775]
[1734246682539,13.75,218.03,217.77,6.35561775]
[1734246682746,6.35561775,217.89,217.81,6.35561775]
[1734246682938,2.12,217.88,217.81,6.35561775]
[1734246683138,6.35561775,217.87,217.81,6.35561775]
[1734246683340,6.35561775,217.87,217.79,6.35561775]
[1734246683538,6.35561775,217.85,217.79,6.35561775]
[1734246684043,6.35561775,217.85,217.77,1.5128]
[1734246684044,2.12,217.84,217.77,1.5128]
[1734246684242,2.12,217.84,217.78,6.35561775]
[1734246684547,2.12,217.84,217.8,6.35561775]
[1734246685742,4.4157,217.84,217.78,6.35561775]
[1734246686350,2.12,217.84,217.78,6.35561775]
[1734246687650,2.12,217.84,217.78,8.65181775]
[1734246688249,6.35561775,217.81,217.77,1.5128]
[1734246688449,5.38245327,217.91,217.66,2.12]
[1734246688450,6.35561775,217.79,217.66,2.12]
[1734246688654,6.35561775,217.77,217.69,6.35561775]
[1734246688850,8.47561775,217.77,217.68,1.4131]
[1734246689153,10.77201775,217.77,217.68,1.4131]
[1734246689345,10.77201775,217.77,217.69,6.35561775]
[1734246689746,10.77201775,217.77,217.72,5.40718251]
[1734246689949,10.77201775,217.77,217.73,2.2968]
[1734246689950,2.12,217.77,217.73,2.2968]
[1734246691047,2.12,217.77,217.72,5.40718251]
[1734246692657,2.12,217.77,217.72,7.70408251]
[1734246695857,4.4164,217.77,217.72,5.40718251]
[1734246696556,2.12,217.77,217.72,7.70408251]
[1734246697154,2.12,217.77,217.72,5.40718251]
[1734246697360,2.12,217.83,217.76,6.35561775]
[1734246697554,2.12,217.82,217.76,6.35561775]
[1734246697958,2.12,217.82,217.78,2.2963]
[1734246699060,8.47561775,217.82,217.76,8.65201775]
[1734246699256,8.47561775,217.82,217.76,6.35561775]
[1734246699852,8.47561775,217.82,217.72,5.40718251]
[1734246699853,6.35561775,217.8,217.72,5.40718251]
[1734246700057,6.35561775,217.8,217.73,6.35561775]
[1734246700261,6.35561775,217.78,217.72,5.40718251]
[1734246700458,2.12,217.77,217.72,5.40718251]
[1734246700661,4.4164,217.77,217.72,7.70408251]
[1734246700964,2.12,217.77,217.72,7.70408251]
[1734246701860,2.12,217.77,217.72,5.40718251]
[1734246702155,2.12,217.77,217.73,2.2968]
[1734246702357,2.12,217.77,217.72,5.40718251]
[1734246702556,4.4164,217.77,217.72,7.70408251]
[1734246702757,2.12,217.77,217.72,7.70408251]
[1734246703758,2.12,217.77,217.73,2.2967]
[1734246707369,4.4164,217.77,217.72,5.40718251]
[1734246707865,8.65211775,217.76,217.72,5.40718251]
[1734246709566,2.12,217.77,217.72,7.70408251]
[1734246710363,2.12,217.77,217.74,2.2966]
[1734246712067,2.2962,217.79,217.74,2.2966]
[1734246712264,2.12,217.78,217.74,2.2966]